[Event "Baku Open 2024"]
[Site "Baku"]
[Date "2024.07.07"]
[Round "9.14"]
[White "Stribuk, Artiom"]
[Black "Akhilbay, Imangali"]
[Result "1-0"]
[ECO "A28"]
[WhiteElo "2422"]
[BlackElo "2303"]
[Annotator "TA"]
[PlyCount "67"]
[EventDate "2024.06.29"]
[EventType "swiss"]
[EventCountry "AZE"]
[SourceTitle "playchess.com"]
[Source "ChessBase"]
[SourceQuality "1"]
[TimeControl "5400+30"]

{[%evp 9,67,0,35,19,18,10,25,0,11,22,11,0,9,0,0,-10,0,-8,-10,-22,0,-42,-35,-43,-38,-64,-33,-41,-54,-67,1,0,21,0,206,214,209,208,383,381,354,343,421,397,420,445,437,443,459,354,1580,1502,1352,664,29990,29991,29992,29991,29993,29994]} 1. c4 {[%emt 0:00:06]} e5 {[%emt 0:00:12]} 2. Nc3 {[%emt 0:00:40]} Nf6 {[%emt 0:00:08]} 3. Nf3 {[%emt 0:00:17]} Nc6 {[%emt 0:00:07]} 4. d3 {[%emt 0:01:43]} h6 {[%emt 0:01:48]} 5. e3 {[%emt 0:03:11]} g6 {[%emt 0:03:21]} 6. Be2 {[%emt 0:12:40]} Bg7 {[%emt 0:00:28]} 7. O-O {[%emt 0:01:18]} O-O {[%emt 0:00:12]} 8. a3 {[%emt 0:00:47] White has an edge.} a5 {[%emt 0:02:23]} 9. Qc2 {[%emt 0:03:31]} d5 {[%emt 0:03:21]} 10. cxd5 {[%emt 0:00:07]} Nxd5 {[%emt 0:00:03]} 11. Bd2 {[%emt 0:05:44][%cal Ob2b4]} Nb6 {[%emt 0:04:38]} 12. b3 {[%emt 0:00:37]} f5 {[%emt 0:01:18]} 13. Bc1 {[%emt 0:05:38]} g5 {[%emt 0:07:53]} 14. Nd2 {[%emt 0:05:18]} Be6 {[%emt 0:08:10]} 15. Rb1 {[%emt 0:07:20]} g4 {[%emt 0:04:49]} 16. g3 {[%emt 0:08:28]} h5 {[%emt 0:07:16]} 17. Re1 {[%emt 0:04:54]} Rf7 {[%emt 0:02:42]} 18. Bf1 {[%emt 0:04:32]} h4 {[%emt 0:08:17]} 19. Bb2 {[%emt 0:06:41]} Bf8 {[%emt 0:09:48]} (19... Qd7 $15) 20. Nc4 {[%emt 0:06:58]} Bg7 {[%emt 0:07:57]} 21. Rbd1 {[%emt 0:03:37] Strongly threatening Nxb6.} Rd7 $2 {[%emt 0:07:17]} (21... Qe7 $11) 22. Nxb6 $18 {[%emt 0:12:13]} cxb6 {[%emt 0:00:05] [#]} 23. d4 $1 {[%emt 0:00:19][%cal Od4d5] Threatens to win with d5!} hxg3 $2 {[%emt 0:16:57]} (23... Ne7 24. Bb5 (24. gxh4 e4 $11) 24... Rd6 25. dxe5 (25. gxh4 Ng6 $15) 25... Bxe5) 24. d5 {[%emt 0:04:11]} gxh2+ {[%emt 0:00:09]} 25. Kh1 $1 {[%emt 0:00:54]} Rxd5 {[%emt 0:01:04]} (25... Bxd5+ 26. Nxd5 Rxd5 27. Bc4 $18 (27. Kxh2 Qh4+ 28. Kg2 Rxd1 $17)) 26. Bc4 {[%emt 0:00:26]} Rxd1 {[%emt 0:02:05]} 27. Bxe6+ {[%emt 0:00:05]} Kh8 {[%emt 0:00:03]} 28. Rxd1 {[%emt 0:00:19]} Qh4 {[%emt 0:00:05]} 29. Qxf5 {[%emt 0:00:48]} Bh6 $2 {[%emt 0:01:35]} (29... Rf8 30. Qxg4 Qxg4 31. Bxg4 Rxf2) 30. Ne4 {[%emt 0:00:43][%cal Od1d7] [#] Rd7! would kill now.} Rf8 {[%emt 0:00:40]} 31. Qxg4 {[%emt 0:00:08]} (31. Qg6 $142 Bxe3 32. fxe3) 31... Qe7 {[%emt 0:00:13]} 32. Rd7 {[%emt 0:00:41] White mates.} Qe8 {[%emt 0:00:04]} 33. Bf5 {[%emt 0:00:48][%csl Gf5][%cal Rd7h7]} Rf7 {[%emt 0:00:36]} 34. Qg6 {[%emt 0:00:15] Weighted Error Value: White=0.42/Black=0.53.  Loses game:     	---       	Black=1      Mistake:       	---       	Black=3      Inaccurate:     	White=2     	Black=1      OK:         	White=7     	Black=7      Best:        	White=2     	Black=1      Strong:       	White=2     	---} 1-0

[Event "Baku Open 2024"]
[Site "Baku"]
[Date "2024.07.07"]
[Round "9.15"]
[White "Kaldarova, Ayaulym"]
[Black "Aradhya, Garg"]
[Result "0-1"]
[ECO "A38"]
[WhiteElo "2100"]
[BlackElo "2418"]
[Annotator "TA"]
[PlyCount "84"]
[EventDate "2024.06.29"]
[EventType "swiss"]
[EventCountry "AZE"]
[SourceTitle "playchess.com"]
[Source "ChessBase"]
[SourceQuality "1"]
[TimeControl "5400+30"]

{[%evp 12,84,29,27,22,20,22,19,28,18,29,12,58,34,27,34,32,0,4,0,0,0,0,0,16,16,16,0,0,0,0,0,0,0,0,0,0,-16,-14,-15,-10,-91,-97,-85,-92,-135,-66,-292,-292,-366,-342,-472,-458,-542,-396,-407,-388,-607,-513,-674,-674,-1078,-1034,-1240,-1142,-1059,-737,-2317,-2122,-2239,-2039,-29979,-29980,-29986,-29987]} 1. Nf3 {[%emt 0:00:09]} Nf6 {[%emt 0:00:02]} 2. c4 {[%emt 0:00:25]} c5 {[%emt 0:00:04]} 3. Nc3 {[%emt 0:00:27]} Nc6 {[%emt 0:00:04]} 4. g3 {[%emt 0:00:28]} g6 {[%emt 0:00:07]} 5. d4 {[%emt 0:00:38]} cxd4 {[%emt 0:00:07]} 6. Nxd4 {[%emt 0:00:06]} Bg7 {[%emt 0:03:08]} 7. Bg2 {[%emt 0:02:59]} h5 {[%emt 0:00:10]} 8. h4 {[%emt 0:07:32]} Ng4 {[%emt 0:00:43]} 9. e3 {[%emt 0:01:36]} O-O {[%emt 0:01:59][%cal Od7d5] The position is equal.} 10. O-O {[%emt 0:00:56]} d6 {[%emt 0:03:05]} 11. b3 {[%emt 0:05:30]} d5 {[%emt 0:17:33]} 12. cxd5 {[%emt 0:05:12]} Nxd4 {[%emt 0:00:17]} 13. exd4 {[%emt 0:00:07]} Qb6 {[%emt 0:00:17]} 14. Na4 {[%emt 0:05:45]} Qxd4 {[%emt 0:01:44]} 15. Qxd4 {[%emt 0:02:15]} Bxd4 {[%emt 0:00:02]} 16. Bb2 {[%emt 0:00:16]} Bxb2 {[%emt 0:01:42]} 17. Nxb2 {[%emt 0:00:08]} Bf5 {[%emt 0:00:38]} 18. Rfe1 {[%emt 0:01:15]} Rfe8 {[%emt 0:05:59]} 19. Rac1 {[%emt 0:01:33]} Rac8 {[%emt 0:00:24]} 20. Nc4 {[%emt 0:05:20]} b6 {[%emt 0:03:02]} 21. Bf3 {[%emt 0:03:14]} Kf8 {[%emt 0:02:47]} 22. d6 {[%emt 0:05:45]} b5 {[%emt 0:12:11]} 23. dxe7+ {[%emt 0:03:26]} Rxe7 {[%emt 0:00:19]} 24. Rxe7 {[%emt 0:02:55]} Kxe7 {[%emt 0:00:22]} 25. Re1+ {[%emt 0:00:15]} Be6 {[%emt 0:01:44]} 26. Ne5 {[%emt 0:07:03]} (26. Na3 $11) 26... Nxe5 $17 {[%emt 0:01:23]} 27. Rxe5 {[%emt 0:00:06][%mdl 4096] Endgame. KRB-KRB} a6 {[%emt 0:00:36]} 28. Kg2 {[%emt 0:15:24] [#]} Rc2 {[%emt 0:03:09]} (28... Kd6 $1 $17 {[%cal Rd6e5]} 29. Re3 Rc2) 29. a4 $2 {[%emt 0:01:23] This costs White the game.} (29. Re2 $15 Rxe2 30. Bxe2) 29... Kd6 $1 $19 {[%emt 0:01:24][%csl LRb3,LRe5]} 30. Re3 {[%emt 0:01:03]} b4 {[%emt 0:02:05]} 31. Re4 {[%emt 0:04:53]} a5 {[%emt 0:01:14]} (31... Bxb3 32. Rxb4 Bc4 33. Rb6+ Kc5 34. Rc6+ Kb4 35. Rf6 $11) 32. Rd4+ {[%emt 0:00:34]} Ke5 {[%emt 0:01:42]} 33. Re4+ {[%emt 0:02:50] [#]} Kf6 $1 {[%emt 0:04:56]} 34. Rd4 {[%emt 0:01:51]} (34. Bd1 $142 Rd2 35. Re1) 34... Bxb3 {[%emt 0:02:12][%cal Oc2a2]} 35. Bd1 {[%emt 0:00:54]} Bxa4 {[%emt 0:00:32][%cal Of6e5]} 36. Rd6+ {[%emt 0:10:06]} Ke5 {[%emt 0:02:52]} 37. Bxc2 {[%emt 0:01:56]} Bxc2 {[%emt 0:00:05] KR-KB} 38. Rb6 {[%emt 0:01:41]} b3 {[%emt 0:00:19]} 39. f4+ {[%emt 0:00:19]} Kd4 {[%emt 0:00:22] And now ...a4 would win.} 40. g4 {[%emt 0:00:43]} Kc3 {[%emt 0:00:32] ( -> ...b2)} 41. f5 {[%emt 0:00:15]} b2 {[%emt 0:00:17]} 42. gxh5 {[%emt 0:00:10]} gxh5 {[%emt 0:00:15] Weighted Error Value: White=0.91/Black=0.23 (precise) .  Loses game:     	White=1     	---        Mistake:       	White=2     	Black=2      Inaccurate:     	White=5     	---        OK:         	White=10    	Black=13     Best:        	---       	Black=3      Strong:       	---       	Black=1} (42... b1=B $2 {perishes.} 43. h6 Ba4 44. h7 (44. Rxb1 Bc6+ 45. Kf2 Be4 $18) 44... Be4+ 45. Kg3 $18) 0-1

[Event "Baku Open 2024"]
[Site "Baku"]
[Date "2024.07.07"]
[Round "9.16"]
[White "Talibov, Shiroghlan"]
[Black "Md Imran"]
[Result "1-0"]
[ECO "C12"]
[WhiteElo "2361"]
[BlackElo "2180"]
[Annotator "TA"]
[PlyCount "75"]
[EventDate "2024.06.29"]
[EventType "swiss"]
[EventCountry "AZE"]
[SourceTitle "playchess.com"]
[Source "ChessBase"]
[SourceQuality "1"]
[TimeControl "5400+30"]

{[%evp 21,75,21,18,21,28,0,6,0,2,0,45,10,47,0,8,18,12,6,77,63,82,72,73,75,113,102,131,128,135,6,68,61,68,72,62,62,64,60,199,205,233,243,479,539,408,410,412,410,452,450,383,446,394,473,1166,1077]} 1. e4 {[%emt 0:00:01]} e6 {[%emt 0:00:05]} 2. d4 {[%emt 0:00:03]} d5 {[%emt 0:00:04]} 3. Nc3 {[%emt 0:00:03]} Nf6 {[%emt 0:00:04]} 4. Bg5 {[%emt 0:01:41]} Bb4 {[%emt 0:03:34]} 5. e5 {[%emt 0:07:46]} h6 {[%emt 0:00:09]} 6. Bd2 {[%emt 0:00:20]} Bxc3 {[%emt 0:00:05]} 7. bxc3 {[%emt 0:00:04]} Ne4 {[%emt 0:00:04]} 8. Qg4 {[%emt 0:01:59]} Kf8 {[%emt 0:01:12]} 9. Bd3 {[%emt 0:01:18]} Nxd2 {[%emt 0:00:28]} 10. Kxd2 {[%emt 0:00:04]} Qg5+ {[%emt 0:08:46]} 11. Qxg5 {[%emt 0:00:17]} hxg5 {[%emt 0:00:02]} 12. Rf1 {[%emt 0:14:39]} Bd7 {[%emt 0:23:35]} 13. g4 {[%emt 0:09:20]} c5 {[%emt 0:06:31]} 14. Nf3 {[%emt 0:06:18] The position is equal.} Nc6 {[%emt 0:02:02]} (14... c4 $5 15. Be2 $8 f6 $14) 15. dxc5 {[%emt 0:03:21][%cal Of1e1]} Ke7 {[%emt 0:02:16]} 16. Re1 {[%emt 0:06:25][%cal Oe1b1]} f6 {[%emt 0:01:15][%cal Bf7f6,Bf6e5,Be5e4][%mdl 32]} 17. h4 {[%emt 0:08:46]} (17. exf6+ $14 gxf6 18. h4) 17... fxe5 {[%emt 0:04:43] aiming for ...e4.} 18. Nxg5 {[%emt 0:03:51]} e4 {[%emt 0:00:47]} 19. Be2 {[%emt 0:00:15]} Raf8 {[%emt 0:04:53]} (19... Rac8 $11 {remains equal.}) 20. f3 $16 {[%emt 0:01:57]} Ne5 {[%emt 0:00:25]} 21. fxe4 {[%emt 0:01:08]} dxe4 {[%emt 0:00:02]} 22. Ke3 {[%emt 0:00:12][%cal Oe1b1] Against Rf4} Ng6 {[%emt 0:01:32]} 23. Ref1 {[%emt 0:05:18]} (23. Nxe4 Nxh4 24. Ref1 Bc6 $11) 23... e5 {[%emt 0:04:43]} 24. Rxf8 {[%emt 0:08:19]} (24. Nxe4 Rxf1 25. Rxf1 (25. Bxf1 Nxh4 26. Nd6 b6 $11) 25... Rxh4 $14) 24... Rxf8 {[%emt 0:00:50] [#]} 25. Bc4 {[%emt 0:03:09]} (25. Kxe4 $2 Bc6+ 26. Ke3 Bxh1 $19) (25. Nxe4 Nf4 26. Bd3 Ng2+ 27. Kd2 Rf4 $14) (25. Rb1 $1 $16 {[%cal Rb1b7]} Rb8 26. h5 (26. Nxe4 Nxh4 27. Nd6 Bc6 $16) (26. Kxe4 Bc6+ 27. Kf5 Nxh4+ 28. Kxe5 Rd8 $16)) 25... Bxg4 {[%emt 0:02:03]} (25... Rf4 $1 $11) 26. Bd5 {[%emt 0:00:30]} (26. Kxe4 $2 Rf4+ 27. Ke3 (27. Kd5 $2 Bd7 $19) 27... Rxc4 $19) 26... b6 {[%emt 0:04:49]} 27. Bxe4 {[%emt 0:00:29]} Bf5 {[%emt 0:00:19]} 28. Rb1 {[%emt 0:04:12] Threatens to win with Nh7. White is more active.} Bxe4 {[%emt 0:01:35]} 29. Kxe4 {[%emt 0:00:06]} bxc5 $14 {[%emt 0:02:15][%mdl 4096] Endgame. KRN-KRN. Loses the game.} (29... Rf6 $14) 30. h5 $18 {[%emt 0:01:25]} Nh4 {[%emt 0:00:51]} 31. Kd5 {[%emt 0:03:16] [#] Rb7+ is the strong threat.} (31. Kxe5 $2 {too greedy.} Rf5+ 32. Ke4 Rxg5 $19) 31... Rd8+ $2 {[%emt 0:06:14]} (31... Rh8 {was called for.} 32. Rb7+ (32. Kxe5 Rxh5 33. Rb7+ Ke8 $11) (32. Kxc5 Rxh5 33. Rb7+ Ke8 $16) 32... Kf6) 32. Kxe5 {[%emt 0:00:04]} ({Inferior is} 32. Kxc5 Nf5 $11) 32... Rd7 {[%emt 0:01:26]} 33. Rg1 {[%emt 0:01:43] Repels Ng2. Rg4 would now be deadly.} Rd2 {[%emt 0:00:42]} 34. Rg4 {[%emt 0:00:11]} Rg2 {[%emt 0:02:33]} 35. Rxg2 {[%emt 0:00:34]} Nxg2 {[%emt 0:00:02]} 36. Ne6 {[%emt 0:00:06]} Ne3 {[%emt 0:00:11]} 37. Nxg7 {[%emt 0:00:49] White wants to mate with Nf5+.} Nxc2 {[%emt 0:00:02]} (37... Nc4+ $142 38. Kd5 Ne3+ 39. Kxc5 Kf7) 38. Nf5+ {[%emt 0:00:26] Weighted Error Value: White=0.12 (very precise) /Black=0.35.  Mistake:       	White=2     	Black=5      Inaccurate:     	White=1     	Black=3      OK:         	White=12    	Black=3      Best:        	White=4     	Black=2} 1-0

[Event "Baku Open 2024"]
[Site "Baku"]
[Date "2024.07.07"]
[Round "9.17"]
[White "Iskandarov, Misratdin"]
[Black "Rustamov, Rustam"]
[Result "1-0"]
[ECO "A28"]
[WhiteElo "2524"]
[BlackElo "2285"]
[Annotator "TA"]
[PlyCount "79"]
[EventDate "2024.06.29"]
[EventType "swiss"]
[EventCountry "AZE"]
[SourceTitle "playchess.com"]
[Source "ChessBase"]
[SourceQuality "1"]
[TimeControl "5400+30"]

{[%evp 14,79,10,22,26,13,22,26,22,32,32,11,27,27,50,43,52,54,60,35,27,38,74,34,44,0,8,0,29,41,158,160,309,277,270,269,377,382,457,433,477,477,447,446,593,586,757,703,1172,1141,1892,1867,2095,1456,5206,3971,1695,1355,5335,5285,1558,1363,2860,1516,1346,1381,29983,29984]} 1. c4 {[%emt 0:00:03]} Nf6 {[%emt 0:00:22]} 2. Nc3 {[%emt 0:00:07]} e5 {[%emt 0:00:12]} 3. Nf3 {[%emt 0:01:49]} Nc6 {[%emt 0:02:41]} 4. e3 {[%emt 0:00:09]} d5 {[%emt 0:04:33]} 5. cxd5 {[%emt 0:00:08]} Nxd5 {[%emt 0:00:02]} 6. Bb5 {[%emt 0:00:28]} Nxc3 {[%emt 0:00:45]} 7. bxc3 {[%emt 0:00:15]} Bd6 {[%emt 0:01:25]} 8. d4 {[%emt 0:01:23]} Bd7 {[%emt 0:01:02]} 9. a4 {[%emt 0:04:52]} a6 {[%emt 0:02:07]} 10. Be2 {[%emt 0:01:40]} O-O {[%emt 0:01:19] White has an edge.} 11. O-O {[%emt 0:02:03]} Qe7 {[%emt 0:02:49]} 12. Nd2 {[%emt 0:01:37]} exd4 {[%emt 0:04:49]} 13. cxd4 {[%emt 0:02:00]} Rfe8 {[%emt 0:00:55][%cal Oc6d4]} 14. Bf3 {[%emt 0:03:14]} Rab8 {[%emt 0:01:44]} 15. Nc4 {[%emt 0:03:22]} Bb4 {[%emt 0:00:56]} 16. Qc2 {[%emt 0:01:52]} b5 {[%emt 0:06:08]} 17. axb5 {[%emt 0:01:43]} axb5 {[%emt 0:00:16]} 18. Nd2 {[%emt 0:06:26]} (18. Nb2 $5 Qd6 19. Ra6 $16 (19. Nd3 Bf5 $16)) 18... Na5 {[%emt 0:01:22]} 19. Nb1 {[%emt 0:03:43][%cal Oc1d2]} (19. Qxc7 $5 Rbc8 20. Qa7 $11) 19... c5 {[%emt 0:06:54]} 20. dxc5 {[%emt 0:04:07]} Rec8 {[%emt 0:01:34]} 21. Bd2 {[%emt 0:07:24]} Bxc5 {[%emt 0:08:43] White leaves nothing to chance now.} 22. Bxa5 $16 {[%emt 0:03:33]} ({Much less strong is} 22. Rxa5 $6 Bb6 23. Qa2 Bxa5 24. Qxa5 (24. Bxa5 b4 $17) 24... b4 $14) 22... Bd4 {[%emt 0:01:10] [#]} (22... Bd6 $16 {was called for.} 23. Qe4 b4) 23. Qxc8+ $3 $18 {[%emt 0:00:10][%mdl 512]} Rxc8 {[%emt 0:00:42]} 24. exd4 {[%emt 0:00:07][%cal Be3d4,Bd4d5][%mdl 32]} Qf6 {[%emt 0:01:04]} (24... b4 $142 25. Nd2 Bf5) 25. Nc3 {[%emt 0:00:42][%cal Bb1c3,Bc3b5,Bb5a7,Ba7c6][%mdl 32] aiming for Nd5.} Be6 {[%emt 0:07:36]} 26. Nxb5 {[%emt 0:01:00]} h6 {[%emt 0:00:12]} 27. d5 {[%emt 0:04:30]} Bd7 {[%emt 0:00:45]} 28. Na7 {[%emt 0:00:09]} Rc2 {[%emt 0:00:20]} 29. Nc6 {[%emt 0:00:21]} g5 {[%emt 0:00:19]} 30. Bb6 {[%emt 0:00:28]} Rd2 {[%emt 0:00:43] Against Bd4} 31. Be3 {[%emt 0:03:32]} Rd3 {[%emt 0:00:54]} 32. Be4 {[%emt 0:00:21]} Rxe3 {[%emt 0:00:35]} 33. fxe3 {[%emt 0:00:06]} Qc3 {[%emt 0:00:04]} 34. Kh1 {[%emt 0:03:04]} Kg7 {[%emt 0:00:55]} 35. Nd4 {[%emt 0:00:14][%cal Od4e6] Strongly threatening Ne6+!} Qxe3 {[%emt 0:00:10]} 36. Nf5+ {[%emt 0:00:11]} Bxf5 {[%emt 0:00:15]} 37. Bxf5 {[%emt 0:00:04] White wants to mate with Rad1.} Qe5 {[%emt 0:00:19]} 38. Rad1 {[%emt 0:00:39] White threatens d6 and mate.} Qd6 {[%emt 0:00:20]} 39. Be4 {[%emt 0:01:49]} Qe5 {[%emt 0:00:08] [#]} 40. d6 $1 {[%emt 0:41:05] Weighted Error Value: White=0.09 (flawless) /Black=0.47.  Mistake:       	---       	Black=3      Inaccurate:     	White=2     	Black=4      OK:         	White=12    	Black=5      Best:        	White=2     	---} 1-0

[Event "Baku Open 2024"]
[Site "Baku"]
[Date "2024.07.07"]
[Round "9.18"]
[White "Zhalmakhanov, Ramazan"]
[Black "Suleymanli, Suleyman"]
[Result "1-0"]
[ECO "C14"]
[WhiteElo "2505"]
[BlackElo "2262"]
[Annotator "TA"]
[PlyCount "97"]
[EventDate "2024.06.29"]
[EventType "swiss"]
[EventCountry "AZE"]
[SourceTitle "playchess.com"]
[Source "ChessBase"]
[SourceQuality "1"]
[TimeControl "5400+30"]

{[%evp 13,97,-16,-19,-19,5,25,13,10,31,0,14,0,0,0,174,184,208,220,220,174,260,242,244,229,231,236,264,268,268,266,264,256,275,268,260,233,359,376,423,420,459,454,481,463,522,514,531,526,531,534,533,530,616,617,797,593,693,706,752,683,773,776,761,760,790,778,769,749,1133,1058,1065,1033,1702,1979,2080,2025,1822,1682,29980,29979,29979,29980,29979,29980,29982,29983]} 1. e4 {[%emt 0:08:34][%cal Be2e4,Be4e5][%mdl 32]} e6 {[%emt 0:00:06]} 2. d4 {[%emt 0:00:14]} d5 {[%emt 0:00:07]} 3. Nc3 {[%emt 0:00:08]} Nf6 {[%emt 0:00:32]} 4. Bg5 {[%emt 0:00:16]} Be7 {[%emt 0:00:23]} 5. e5 {[%emt 0:00:35]} Nfd7 {[%emt 0:02:58]} 6. h4 {[%emt 0:00:18]} h6 {[%emt 0:00:38]} 7. Be3 {[%emt 0:00:55]} c5 {[%emt 0:12:57]} 8. Qg4 {[%emt 0:00:28]} g6 {[%emt 0:02:21]} 9. dxc5 {[%emt 0:07:05]} Nxe5 {[%emt 0:08:20]} 10. Qg3 {[%emt 0:01:06] The position is equal.} Nbc6 {[%emt 0:07:43]} 11. O-O-O {[%emt 0:06:42]} h5 {[%emt 0:19:52]} 12. Bf4 {[%emt 0:18:54]} Ng4 {[%emt 0:12:34]} 13. f3 $36 {[%emt 0:02:59][%mdl 2048] Black is under pressure.} e5 $2 {[%emt 0:04:07]} (13... Nf6 $1 $11 {and Black has nothing to worry.}) 14. Rxd5 $18 {[%emt 0:06:18]} Qa5 {[%emt 0:06:19]} 15. Bg5 {[%emt 0:07:28]} Be6 {[%emt 0:05:24]} 16. Bxe7 {[%emt 0:03:15]} Ne3 {[%emt 0:03:50]} (16... Nxe7 $142 17. Rd3 (17. fxg4 Nxd5 18. Nxd5 O-O-O $14) 17... Nf5) 17. Bb5 {[%emt 0:02:52]} Nxd5 {[%emt 0:01:29]} 18. Nxd5 {[%emt 0:00:50]} (18. Qxe5 $2 Qxb5 (18... Kxe7 $2 19. Nxd5+ Kd7 20. Bxc6+ bxc6 21. Qd6+ Kc8 22. Ne7+ Kb7 23. Qxc6+ Kb8 24. Qxe6 $18) (18... Nxc3 19. Bxc6+ Kxe7 20. Qd6+ Kf6 21. Qd4+ Ke7 22. Qd6+ Kf6 23. Qd4+ Ke7 24. Qd6+ $11) 19. Qxh8+ Kxe7 20. Nxb5 (20. Qxa8 Nxc3 21. Nh3 Nxa2+ 22. Kb1 Nc3+ 23. Kc1 Ne2+ 24. Kd1 Ned4 $19) 20... Rxh8 $19) 18... Bxd5 {[%emt 0:01:05] [#]} 19. Bxc6+ {[%emt 0:01:23]} (19. Qxe5 $2 Qxb5 20. Qxh8+ Kxe7 21. Qxa8 Qf1+ (21... Qxc5 $2 22. Qxb7+ Kf8 23. Nh3 $18) 22. Kd2 Qxg2+ 23. Ne2 Qxh1 $19) 19... bxc6 {[%emt 0:03:42]} 20. Qxe5 {[%emt 0:00:22] Black must now prevent Ne2.} Kd7 {[%emt 0:00:55] [#] Black is weak on the dark squares} 21. c4 $1 {[%emt 0:08:56][%cal Bc2c4,Bc4d5][%mdl 544]} Rae8 {[%emt 0:03:18]} (21... Bxc4 $2 22. Qd6+ Ke8 23. Nh3 $18 (23. Qe5 Rh7 $16)) 22. cxd5 {[%emt 0:01:53]} Qxc5+ {[%emt 0:01:08]} 23. Bxc5 {[%emt 0:00:28][%cal Be7c5,Bc5a7,Ba7d4,Bd4f6][%mdl 32]} Rxe5 {[%emt 0:00:02]} 24. Nh3 {[%emt 0:06:53]} ({Don't take} 24. Bxa7 Re1+ 25. Kd2 Rb1) 24... cxd5 {[%emt 0:00:45]} (24... Rxd5 {was called for.} 25. Rd1 (25. Bxa7 Ra8 $18) 25... Rxd1+ 26. Kxd1 Rb8) 25. Bxa7 {[%emt 0:01:24]} Ra8 {[%emt 0:00:35]} 26. Bd4 {[%emt 0:00:17]} Ree8 {[%emt 0:00:46][%cal Be5e8,Be8b8,Bb8b5,Bb5c5][%mdl 32]} 27. Kb1 {[%emt 0:01:40]} Reb8 {[%emt 0:01:22]} 28. Nf4 {[%emt 0:00:50]} Rb5 {[%emt 0:00:25]} 29. Rd1 {[%emt 0:00:27]} Kd6 {[%emt 0:00:17]} 30. b3 {[%emt 0:00:41]} Rg8 {[%emt 0:00:35]} 31. Bf6 {[%emt 0:00:32]} Rc8 {[%emt 0:00:40]} 32. Kb2 {[%emt 0:00:30]} Ra8 {[%emt 0:00:18] [#]} 33. a4 $1 {[%emt 0:01:33]} Rc5 {[%emt 0:00:28]} (33... Rxa4 34. Nxd5) 34. Bd4 {[%emt 0:00:25]} Rc6 {[%emt 0:00:35]} 35. Bc3 {[%emt 0:00:13]} Ke7 {[%emt 0:00:44]} 36. Nxd5+ {[%emt 0:00:25]} Ke6 {[%emt 0:00:01]} 37. Nf4+ {[%emt 0:00:18]} Ke7 {[%emt 0:00:11]} 38. a5 {[%emt 0:00:11]} Rb8 {[%emt 0:00:31]} 39. Nd5+ {[%emt 0:00:22]} Ke6 {[%emt 0:00:01]} 40. Nb6 {[%emt 0:00:03]} Rc5 {[%emt 0:00:10]} 41. b4 {[%emt 0:00:05]} Rb5 {[%emt 0:00:04]} 42. Kb3 {[%emt 0:00:09]} g5 {[%emt 0:00:05]} 43. Re1+ {[%emt 0:00:12]} Kf5 {[%emt 0:00:14]} 44. Kc4 {[%emt 0:00:06]} R5xb6 {[%emt 0:00:35]} 45. axb6 {[%emt 0:00:07]} gxh4 {[%emt 0:00:03]} 46. Re5+ {[%emt 0:00:18] White mates.} Kf4 {[%emt 0:00:02]} 47. Re4+ {[%emt 0:00:06]} Kg5 {[%emt 0:00:06]} 48. Bd4 {[%emt 0:00:04]} f5 {[%emt 0:00:03]} 49. Re7 {[%emt 0:00:06] White took control after the opening.   Weighted Error Value: White=0.05 (flawless) /Black=0.33.  Loses game:     	---       	Black=1      Mistake:       	---       	Black=2      OK:         	White=16    	Black=9      Best:        	White=1     	---        Brilliant:      	White=1     	---} 1-0